[Event "*** Titled Tuesday Blitz"]
[Site "Chess.com"]
[Date "2021.03.30"]
[Round "5"]
[White "WinnieTPooh"]
[Black "Nachsueb"]
[Result "1-0"]
[WhiteElo "1980"]
[BlackElo "2147"]
[TimeControl "180+1"]
[EndTime "10:57:00 PDT"]
[Termination "WinnieTPooh won by resignation"]

1. d4 {[%clk 0:03:00.6]} 1... Nf6 {[%clk 0:02:59.9]} 2. c4 {[%clk 0:02:59.4]}
2... e6 {[%clk 0:03:00.5]} 3. g3 {[%clk 0:02:53.4]} 3... Bb4+ {[%clk 0:03:00.1]}
4. Nd2 {[%clk 0:02:52.8]} 4... O-O {[%clk 0:02:59.5]} 5. Bg2 {[%clk 0:02:52.7]}
5... d5 {[%clk 0:02:59.4]} 6. Qc2 {[%clk 0:02:50]} 6... Nc6 {[%clk 0:02:52.3]}
7. Nf3 {[%clk 0:02:46.5]} 7... Rb8 {[%clk 0:02:45.1]} 8. O-O {[%clk 0:02:45.2]}
8... a6 {[%clk 0:02:41.9]} 9. Rd1 {[%clk 0:02:43.4]} 9... Bxd2 {[%clk
0:02:29.8]} 10. Bxd2 {[%clk 0:02:41.3]} 10... dxc4 {[%clk 0:02:29.8]} 11. Qxc4
{[%clk 0:02:42.2]} 11... Ne7 {[%clk 0:02:24.4]} 12. Rac1 {[%clk 0:02:38.6]}
12... Ned5 {[%clk 0:02:21.5]} 13. Ne5 {[%clk 0:02:37.9]} 13... b5 {[%clk
0:02:20.5]} 14. Qc2 {[%clk 0:02:33.8]} 14... Bb7 {[%clk 0:02:15.9]} 15. e4
{[%clk 0:02:23.4]} 15... Nb6 {[%clk 0:02:15.5]} 16. Bb4 {[%clk 0:02:18.1]} 16...
Re8 {[%clk 0:02:08.9]} 17. Nc6 {[%clk 0:02:12.5]} 17... Bxc6 {[%clk 0:02:05.3]}
18. Qxc6 {[%clk 0:02:13.4]} 18... Nc4 {[%clk 0:01:59.8]} 19. b3 {[%clk
0:02:10.7]} 19... Rb6 {[%clk 0:01:53.9]} 20. Qc5 {[%clk 0:02:00.3]} 20... Nd7
{[%clk 0:01:52.8]} 21. Qh5 {[%clk 0:01:50.6]} 21... Nf6 {[%clk 0:01:48.1]} 22.
Qc5 {[%clk 0:01:47.6]} 22... Nd7 {[%clk 0:01:47.6]} 23. Qh5 {[%clk 0:01:46.2]}
23... Nd6 {[%clk 0:01:45.7]} 24. e5 {[%clk 0:01:44.5]} 24... Nf5 {[%clk
0:01:45.3]} 25. Be4 {[%clk 0:01:33.4]} 25... g6 {[%clk 0:01:45]} 26. Qe2 {[%clk
0:01:16.6]} 26... Ne7 {[%clk 0:01:21.5]} 27. Qf3 {[%clk 0:00:44.4]} 27... Rb8
{[%clk 0:01:11.4]} 28. h4 {[%clk 0:00:25.4]} 28... h5 {[%clk 0:01:09.3]} 29. Kg2
{[%clk 0:00:20.5]} 29... Kg7 {[%clk 0:01:08.8]} 30. g4 {[%clk 0:00:17.9]} 30...
hxg4 {[%clk 0:01:07.3]} 31. Qxg4 {[%clk 0:00:18.8]} 31... Nf5 {[%clk 0:01:05.8]}
32. h5 {[%clk 0:00:17.1]} 32... Rh8 {[%clk 0:00:46.9]} 33. hxg6 {[%clk
0:00:14.9]} 33... fxg6 {[%clk 0:00:47.8]} 34. Rh1 {[%clk 0:00:02.5]} 34... c5
{[%clk 0:00:41.5]} 35. dxc5 {[%clk 0:00:02.3]} 35... Nxe5 {[%clk 0:00:41.2]} 36.
Qf4 {[%clk 0:00:02.6]} 36... Nf7 {[%clk 0:00:29.1]} 37. Bc3+ {[%clk 0:00:02.3]}
37... e5 {[%clk 0:00:29.4]} 38. Bxe5+ {[%clk 0:00:02.6]} 38... Nxe5 {[%clk
0:00:29.5]} 39. Qxe5+ {[%clk 0:00:03.5]} 39... Qf6 {[%clk 0:00:30]} 40. Qxf6+
{[%clk 0:00:03.4]} 40... Kxf6 {[%clk 0:00:30.8]} 41. Bxf5 {[%clk 0:00:04.1]}
41... gxf5 {[%clk 0:00:28.5]} 42. Rxh8 {[%clk 0:00:05]} 42... Rxh8 {[%clk
0:00:29]} 43. c6 {[%clk 0:00:05.7]} 43... Ke6 {[%clk 0:00:27.1]} 44. c7 {[%clk
0:00:06]} 44... Kd7 {[%clk 0:00:27.4]} 45. Kf3 {[%clk 0:00:06.5]} 45... Rc8
{[%clk 0:00:26.7]} 46. Kf4 {[%clk 0:00:06.9]} 46... Ke6 {[%clk 0:00:22.4]} 47.
Rc6+ {[%clk 0:00:05.3]} 47... Kd5 {[%clk 0:00:20.6]} 48. Rxa6 {[%clk 0:00:05.3]}
48... Rxc7 {[%clk 0:00:21.1]} 49. Kxf5 {[%clk 0:00:05.6]} 49... Rf7+ {[%clk
0:00:20.6]} 50. Rf6 {[%clk 0:00:05.8]} 50... Rc7 {[%clk 0:00:21]} 51. f4 {[%clk
0:00:04.5]} 51... Rc2 {[%clk 0:00:20.9]} 52. a4 {[%clk 0:00:04]} 52... b4 {[%clk
0:00:18.4]} 53. Rb6 {[%clk 0:00:03.4]} 53... Kc5 {[%clk 0:00:18.4]} 54. Rb5+
{[%clk 0:00:03.7]} 54... Kc6 {[%clk 0:00:16.9]} 55. Rxb4 {[%clk 0:00:04.6]}
55... Rc5+ {[%clk 0:00:16.9]} 56. Ke4 {[%clk 0:00:04.1]} 56... Kd6 {[%clk
0:00:17.3]} 57. Rd4+ {[%clk 0:00:03.8]} 57... Ke6 {[%clk 0:00:17.3]} 58. b4
{[%clk 0:00:03.7]} 58... Rc1 {[%clk 0:00:15.9]} 59. a5 {[%clk 0:00:03.7]} 59...
Ra1 {[%clk 0:00:15.4]} 60. Kf3 {[%clk 0:00:03.8]} 60... Kf6 {[%clk 0:00:15.2]}
61. Kg4 {[%clk 0:00:04]} 61... Rg1+ {[%clk 0:00:14.8]} 62. Kh5 {[%clk
0:00:03.7]} 62... Rh1+ {[%clk 0:00:15.3]} 63. Kg4 {[%clk 0:00:03.9]} 63... Rg1+
{[%clk 0:00:16.2]} 64. Kf3 {[%clk 0:00:04.2]} 64... Rf1+ {[%clk 0:00:16.5]} 65.
Ke4 {[%clk 0:00:04.6]} 65... Re1+ {[%clk 0:00:17.1]} 66. Kd5 {[%clk 0:00:04.9]}
66... Ra1 {[%clk 0:00:16.9]} 67. Kc6 {[%clk 0:00:04.8]} 67... Ke6 {[%clk
0:00:14.9]} 68. Kb7 {[%clk 0:00:04.7]} 68... Rc1 {[%clk 0:00:11.6]} 69. a6
{[%clk 0:00:04.7]} 69... Ra1 {[%clk 0:00:11.7]} 70. a7 {[%clk 0:00:04.7]} 70...
Kf6 {[%clk 0:00:12.4]} 71. a8=Q {[%clk 0:00:04.9]} 71... Rxa8 {[%clk 0:00:13.2]}
72. Kxa8 {[%clk 0:00:05.8]} 1-0

[Event "*** Titled Tuesday Blitz"]
[Site "Chess.com"]
[Date "2021.03.30"]
[Round "5"]
[White "MF1966Idrisov"]
[Black "prachiti01"]
[Result "1/2-1/2"]
[WhiteElo "2358"]
[BlackElo "1999"]
[TimeControl "180+1"]
[EndTime "10:57:05 PDT"]
[Termination "Game drawn - insufficient material"]

1. Nf3 {[%clk 0:03:00.9]} 1... Nf6 {[%clk 0:02:59]} 2. b3 {[%clk 0:03:00.5]}
2... g6 {[%clk 0:02:59]} 3. Bb2 {[%clk 0:03:00.7]} 3... Bg7 {[%clk 0:02:59.2]}
4. c4 {[%clk 0:03:01.1]} 4... O-O {[%clk 0:02:59]} 5. g3 {[%clk 0:03:01.6]} 5...
d6 {[%clk 0:02:58.7]} 6. d4 {[%clk 0:02:59.7]} 6... Nc6 {[%clk 0:02:58.4]} 7.
Bg2 {[%clk 0:02:59.8]} 7... Bd7 {[%clk 0:02:57.9]} 8. O-O {[%clk 0:02:59.6]}
8... a6 {[%clk 0:02:58]} 9. Nc3 {[%clk 0:02:59.7]} 9... Rb8 {[%clk 0:02:57.6]}
10. Rc1 {[%clk 0:02:58.8]} 10... b5 {[%clk 0:02:57.5]} 11. c5 {[%clk 0:02:59.2]}
11... dxc5 {[%clk 0:02:37.2]} 12. dxc5 {[%clk 0:02:58.5]} 12... e5 {[%clk
0:02:36.5]} 13. Ng5 {[%clk 0:02:49.2]} 13... h6 {[%clk 0:02:33.2]} 14. Nge4
{[%clk 0:02:47.4]} 14... Nxe4 {[%clk 0:02:32]} 15. Nxe4 {[%clk 0:02:47]} 15...
Qe7 {[%clk 0:02:31.8]} 16. a3 {[%clk 0:02:36.2]} 16... Rbd8 {[%clk 0:02:31.3]}
17. Qc2 {[%clk 0:02:34.3]} 17... Nd4 {[%clk 0:02:31.3]} 18. Bxd4 {[%clk
0:02:13.8]} 18... exd4 {[%clk 0:02:32.2]} 19. b4 {[%clk 0:02:07.5]} 19... Rfe8
{[%clk 0:02:31.4]} 20. f3 {[%clk 0:02:04.5]} 20... f5 {[%clk 0:02:24.5]} 21. Nf2
{[%clk 0:02:00.6]} 21... Qxe2 {[%clk 0:02:24.2]} 22. Qd3 {[%clk 0:01:58.3]}
22... Qxd3 {[%clk 0:02:23]} 23. Nxd3 {[%clk 0:01:57.9]} 23... Re3 {[%clk
0:02:21]} 24. Rcd1 {[%clk 0:01:55.2]} 24... Be6 {[%clk 0:02:15.7]} 25. f4 {[%clk
0:01:46.5]} 25... Bc4 {[%clk 0:02:13.8]} 26. Rf3 {[%clk 0:01:45.7]} 26... Rxf3
{[%clk 0:02:09.6]} 27. Bxf3 {[%clk 0:01:44.8]} 27... Kf7 {[%clk 0:02:02.8]} 28.
Bb7 {[%clk 0:01:42.5]} 28... Re8 {[%clk 0:02:00.4]} 29. Ne5+ {[%clk 0:01:33.1]}
29... Bxe5 {[%clk 0:01:59.8]} 30. fxe5 {[%clk 0:01:33.5]} 30... Rd8 {[%clk
0:01:59.3]} 31. Bxa6 {[%clk 0:01:28.7]} 31... Ke6 {[%clk 0:01:58.5]} 32. Bb7
{[%clk 0:01:28.4]} 32... Kxe5 {[%clk 0:01:58.2]} 33. Re1+ {[%clk 0:01:28.5]}
33... Kf6 {[%clk 0:01:58]} 34. Rd1 {[%clk 0:01:22.8]} 34... d3 {[%clk
0:01:55.7]} 35. Kf2 {[%clk 0:01:21]} 35... Rb8 {[%clk 0:01:54.5]} 36. Bg2 {[%clk
0:01:18.3]} 36... Re8 {[%clk 0:01:52.4]} 37. Bf1 {[%clk 0:01:17.7]} 37... Rd8
{[%clk 0:01:36.8]} 38. Ke3 {[%clk 0:01:14.1]} 38... Ke5 {[%clk 0:01:36.5]} 39.
Kd2 {[%clk 0:01:04.5]} 39... Kd4 {[%clk 0:01:31.6]} 40. Re1 {[%clk 0:01:04]}
40... Rd7 {[%clk 0:01:30.5]} 41. Re3 {[%clk 0:00:58.4]} 41... g5 {[%clk
0:01:29.5]} 42. Bxd3 {[%clk 0:00:55.9]} 42... f4 {[%clk 0:01:23.2]} 43. gxf4
{[%clk 0:00:55.7]} 43... gxf4 {[%clk 0:01:22.6]} 44. Rf3 {[%clk 0:00:52.2]}
44... Ke5 {[%clk 0:01:21.6]} 45. h3 {[%clk 0:00:38.8]} 45... c6 {[%clk
0:01:19.9]} 46. Kc3 {[%clk 0:00:37.8]} 46... Bxd3 {[%clk 0:01:18.9]} 47. Rxd3
{[%clk 0:00:37.8]} 47... Rxd3+ {[%clk 0:01:18.9]} 48. Kxd3 {[%clk 0:00:37.8]}
48... Kd5 {[%clk 0:01:19]} 49. h4 {[%clk 0:00:32.7]} 49... h5 {[%clk 0:01:18.3]}
50. Ke2 {[%clk 0:00:30.6]} 50... Kc4 {[%clk 0:01:18.2]} 51. Kf3 {[%clk
0:00:29.1]} 51... Kb3 {[%clk 0:01:18.3]} 52. Kxf4 {[%clk 0:00:29.5]} 52... Kxa3
{[%clk 0:01:18.4]} 53. Ke5 {[%clk 0:00:28.2]} 53... Kxb4 {[%clk 0:01:17.8]} 54.
Kd6 {[%clk 0:00:28.5]} 54... Ka3 {[%clk 0:01:14.4]} 55. Kxc6 {[%clk 0:00:28.8]}
55... b4 {[%clk 0:01:14.7]} 56. Kd6 {[%clk 0:00:28.8]} 56... b3 {[%clk
0:01:15.2]} 57. c6 {[%clk 0:00:29.2]} 57... b2 {[%clk 0:01:15.5]} 58. c7 {[%clk
0:00:29.4]} 58... b1=Q {[%clk 0:01:15.2]} 59. c8=Q {[%clk 0:00:29.7]} 59... Qd3+
{[%clk 0:01:14.9]} 60. Ke5 {[%clk 0:00:27.7]} 60... Qe3+ {[%clk 0:01:13]} 61.
Kf6 {[%clk 0:00:23.8]} 61... Qf4+ {[%clk 0:01:10.4]} 62. Kg6 {[%clk 0:00:20]}
62... Qxh4 {[%clk 0:01:08.4]} 63. Qc3+ {[%clk 0:00:18.2]} 63... Ka4 {[%clk
0:01:07.8]} 64. Qc2+ {[%clk 0:00:17.1]} 64... Kb4 {[%clk 0:01:06.6]} 65. Qd2+
{[%clk 0:00:16.1]} 65... Kc5 {[%clk 0:01:06.4]} 66. Qc3+ {[%clk 0:00:15.7]}
66... Kd6 {[%clk 0:01:03.9]} 67. Qa3+ {[%clk 0:00:13.3]} 67... Kd7 {[%clk
0:01:00.7]} 68. Qa7+ {[%clk 0:00:12.8]} 68... Ke6 {[%clk 0:01:00]} 69. Qb6+
{[%clk 0:00:13]} 69... Ke5 {[%clk 0:00:58]} 70. Qc5+ {[%clk 0:00:13]} 70... Kf4
{[%clk 0:00:56]} 71. Qd4+ {[%clk 0:00:13]} 71... Kg3 {[%clk 0:00:55.7]} 72. Qg1+
{[%clk 0:00:12.7]} 72... Kf3 {[%clk 0:00:53.5]} 73. Qf1+ {[%clk 0:00:11.3]}
73... Ke3 {[%clk 0:00:52.5]} 74. Qg1+ {[%clk 0:00:11.1]} 74... Ke2 {[%clk
0:00:49.9]} 75. Qg2+ {[%clk 0:00:09.9]} 75... Kd3 {[%clk 0:00:49]} 76. Qf1+
{[%clk 0:00:08.6]} 76... Kd2 {[%clk 0:00:47]} 77. Qg2+ {[%clk 0:00:08.6]} 77...
Ke3 {[%clk 0:00:46.3]} 78. Qg5+ {[%clk 0:00:08.1]} 78... Qxg5+ {[%clk
0:00:44.5]} 79. Kxg5 {[%clk 0:00:08.3]} 79... h4 {[%clk 0:00:45.4]} 80. Kxh4
{[%clk 0:00:08.4]} 1/2-1/2

[Event "*** Titled Tuesday Blitz"]
[Site "Chess.com"]
[Date "2021.03.30"]
[Round "5"]
[White "Kotofeyca"]
[Black "MustafayevFarid2004"]
[Result "1-0"]
[WhiteElo "2389"]
[BlackElo "2507"]
[TimeControl "180+1"]
[EndTime "10:57:26 PDT"]
[Termination "Kotofeyca won by resignation"]

1. d4 {[%clk 0:03:00.9]} 1... Nf6 {[%clk 0:02:59.6]} 2. c4 {[%clk 0:03:01]} 2...
e6 {[%clk 0:02:58.7]} 3. Nf3 {[%clk 0:03:00.6]} 3... d5 {[%clk 0:02:56.8]} 4.
Nc3 {[%clk 0:03:00.1]} 4... Bb4 {[%clk 0:02:56.5]} 5. cxd5 {[%clk 0:02:59.1]}
5... exd5 {[%clk 0:02:56.5]} 6. a3 {[%clk 0:02:59.1]} 6... Bxc3+ {[%clk
0:02:55.2]} 7. bxc3 {[%clk 0:03:00]} 7... O-O {[%clk 0:02:55.6]} 8. Bg5 {[%clk
0:02:59.8]} 8... h6 {[%clk 0:02:56.1]} 9. Bh4 {[%clk 0:02:59.2]} 9... c6 {[%clk
0:02:56.3]} 10. e3 {[%clk 0:02:58.9]} 10... Qa5 {[%clk 0:02:55.9]} 11. Bxf6
{[%clk 0:02:42.1]} 11... Qxc3+ {[%clk 0:02:54.5]} 12. Nd2 {[%clk 0:02:42.1]}
12... gxf6 {[%clk 0:02:54.5]} 13. Be2 {[%clk 0:02:35]} 13... Bf5 {[%clk
0:02:45.5]} 14. O-O {[%clk 0:02:33.9]} 14... Qc2 {[%clk 0:02:22.7]} 15. Qe1
{[%clk 0:02:25.2]} 15... Nd7 {[%clk 0:02:19.2]} 16. Nf3 {[%clk 0:02:21.9]} 16...
Bd3 {[%clk 0:02:14.9]} 17. Bxd3 {[%clk 0:02:10.5]} 17... Qxd3 {[%clk 0:02:15.8]}
18. Qb4 {[%clk 0:02:10.2]} 18... Nb6 {[%clk 0:02:09.8]} 19. Nh4 {[%clk
0:01:58.3]} 19... Qe4 {[%clk 0:01:59.2]} 20. g3 {[%clk 0:01:57.3]} 20... Qd3
{[%clk 0:01:57.6]} 21. Qd6 {[%clk 0:01:49.8]} 21... Kg7 {[%clk 0:01:40.5]} 22.
Qf4 {[%clk 0:01:49.5]} 22... Qe4 {[%clk 0:01:30]} 23. Nf5+ {[%clk 0:01:41.2]}
23... Kg6 {[%clk 0:01:25.7]} 24. Qxe4 {[%clk 0:00:36.6]} 24... dxe4 {[%clk
0:01:26.6]} 25. Nd6 {[%clk 0:00:37.2]} 25... f5 {[%clk 0:01:24.3]} 26. Nxb7
{[%clk 0:00:36.8]} 26... Rab8 {[%clk 0:01:21.7]} 27. Nc5 {[%clk 0:00:34.2]}
27... Rfd8 {[%clk 0:01:19]} 28. Rfc1 {[%clk 0:00:32.9]} 28... Nd5 {[%clk
0:01:17.8]} 29. Rab1 {[%clk 0:00:30.1]} 29... Nb6 {[%clk 0:00:53.9]} 30. Na6
{[%clk 0:00:26.3]} 30... Rbc8 {[%clk 0:00:53.4]} 31. Nb4 {[%clk 0:00:26.4]}
31... Rd6 {[%clk 0:00:51.7]} 32. Rc5 {[%clk 0:00:26.2]} 32... Na4 {[%clk
0:00:49.5]} 33. Ra5 {[%clk 0:00:24.3]} 33... Nc3 {[%clk 0:00:48.8]} 34. Rb3
{[%clk 0:00:24.7]} 34... Nd5 {[%clk 0:00:33.3]} 35. Rxa7 {[%clk 0:00:24.4]}
35... Rb8 {[%clk 0:00:30.8]} 36. Ra6 {[%clk 0:00:19.9]} 36... Kg5 {[%clk
0:00:27.4]} 37. Rb2 {[%clk 0:00:18.1]} 37... Rb5 {[%clk 0:00:26.2]} 38. Kg2
{[%clk 0:00:14.7]} 38... h5 {[%clk 0:00:22.2]} 39. h4+ {[%clk 0:00:14.3]} 39...
Kg6 {[%clk 0:00:21.4]} 40. Rc2 {[%clk 0:00:10.2]} 40... Nxb4 {[%clk 0:00:21]}
41. axb4 {[%clk 0:00:11.1]} 41... Rxb4 {[%clk 0:00:20.3]} 42. Rcxc6 {[%clk
0:00:10.9]} 42... Rxc6 {[%clk 0:00:20.9]} 43. Rxc6+ {[%clk 0:00:11.7]} 43... f6
{[%clk 0:00:21.8]} 44. Rc7 {[%clk 0:00:11.3]} 44... Rb2 {[%clk 0:00:21.5]} 45.
Re7 {[%clk 0:00:11.1]} 45... Rd2 {[%clk 0:00:20.5]} 46. Rc7 {[%clk 0:00:10.1]}
46... Ra2 {[%clk 0:00:20.4]} 47. Kf1 {[%clk 0:00:10.4]} 47... Ra1+ {[%clk
0:00:19.8]} 48. Ke2 {[%clk 0:00:11]} 48... Ra2+ {[%clk 0:00:20.5]} 49. Kf1
{[%clk 0:00:11.4]} 49... Ra1+ {[%clk 0:00:20.7]} 50. Kg2 {[%clk 0:00:11.6]}
50... Ra2 {[%clk 0:00:21.4]} 51. Rd7 {[%clk 0:00:11.9]} 51... Rd2 {[%clk
0:00:21.5]} 52. Kf1 {[%clk 0:00:11.7]} 52... f4 {[%clk 0:00:20.3]} 53. gxf4
{[%clk 0:00:10.9]} 53... Kf5 {[%clk 0:00:20.7]} 54. Kg2 {[%clk 0:00:11.1]} 54...
Rd1 {[%clk 0:00:20.3]} 55. Rg7 {[%clk 0:00:10.2]} 55... Rd2 {[%clk 0:00:19.7]}
56. Rg8 {[%clk 0:00:09.3]} 56... Rd1 {[%clk 0:00:19.8]} 57. Rd8 {[%clk
0:00:08.4]} 57... Kg4 {[%clk 0:00:20]} 58. d5 {[%clk 0:00:08.4]} 58... Kxh4
{[%clk 0:00:18.9]} 59. d6 {[%clk 0:00:08.6]} 59... f5 {[%clk 0:00:18.5]} 60. d7
{[%clk 0:00:08.5]} 60... Rd2 {[%clk 0:00:16.2]} 61. Kf1 {[%clk 0:00:08.4]} 61...
Kh3 {[%clk 0:00:15.8]} 62. Ke1 {[%clk 0:00:08.4]} 62... Rxd7 {[%clk 0:00:16.1]}
63. Rxd7 {[%clk 0:00:07.7]} 63... h4 {[%clk 0:00:17]} 64. Rh7 {[%clk 0:00:06.5]}
64... Kg4 {[%clk 0:00:16.6]} 65. Kf1 {[%clk 0:00:06.3]} 65... Kh3 {[%clk
0:00:16.4]} 66. Kg1 {[%clk 0:00:05.5]} 66... Kg4 {[%clk 0:00:17]} 67. Kg2 {[%clk
0:00:04.6]} 67... h3+ {[%clk 0:00:16.5]} 68. Kh2 {[%clk 0:00:04.2]} 68... Kf3
{[%clk 0:00:16.9]} 69. Rxh3+ {[%clk 0:00:04.2]} 69... Kxf2 {[%clk 0:00:17.5]}
70. Rg3 {[%clk 0:00:04.9]} 70... Ke2 {[%clk 0:00:18.1]} 71. Kg2 {[%clk
0:00:05.8]} 71... Kd2 {[%clk 0:00:18.2]} 72. Kf2 {[%clk 0:00:06]} 72... Kd3
{[%clk 0:00:18.7]} 73. Rg5 {[%clk 0:00:06.9]} 73... Kd2 {[%clk 0:00:17.2]} 74.
Rxf5 {[%clk 0:00:07.8]} 1-0

[Event "*** Titled Tuesday Blitz"]
[Site "Chess.com"]
[Date "2021.03.30"]
[Round "5"]
[White "vinniethepooh"]
[Black "Bigfish1995"]
[Result "1/2-1/2"]
[WhiteElo "2664"]
[BlackElo "3005"]
[TimeControl "180+1"]
[EndTime "10:57:48 PDT"]
[Termination "Game drawn by repetition"]

1. d4 {[%clk 0:03:00.9]} 1... e6 {[%clk 0:02:59.9]} 2. c4 {[%clk 0:03:01.2]}
2... f5 {[%clk 0:02:58.3]} 3. Nc3 {[%clk 0:03:01.7]} 3... Nf6 {[%clk 0:02:56.7]}
4. g3 {[%clk 0:03:02.1]} 4... Bb4 {[%clk 0:02:56.3]} 5. Bg2 {[%clk 0:03:02.3]}
5... O-O {[%clk 0:02:56.3]} 6. Nh3 {[%clk 0:03:02]} 6... Ne4 {[%clk 0:02:47.3]}
7. O-O {[%clk 0:02:57.3]} 7... d5 {[%clk 0:02:14]} 8. Nf4 {[%clk 0:02:47.1]}
8... c6 {[%clk 0:02:09.7]} 9. Qb3 {[%clk 0:02:41.5]} 9... Bd6 {[%clk 0:02:05.5]}
10. f3 {[%clk 0:02:36.4]} 10... Nf6 {[%clk 0:01:54.4]} 11. Nd3 {[%clk
0:02:26.4]} 11... a5 {[%clk 0:01:48.6]} 12. c5 {[%clk 0:02:16]} 12... Bc7 {[%clk
0:01:46.1]} 13. Bf4 {[%clk 0:02:16.7]} 13... Bxf4 {[%clk 0:01:41.6]} 14. gxf4
{[%clk 0:02:12.5]} 14... Kh8 {[%clk 0:01:40.5]} 15. e3 {[%clk 0:02:12.1]} 15...
Nbd7 {[%clk 0:01:37]} 16. Ne5 {[%clk 0:01:59.5]} 16... Nxe5 {[%clk 0:01:36.8]}
17. fxe5 {[%clk 0:01:59.3]} 17... Nd7 {[%clk 0:01:37.4]} 18. f4 {[%clk
0:01:54.6]} 18... b6 {[%clk 0:01:36.3]} 19. cxb6 {[%clk 0:01:54.2]} 19... Nxb6
{[%clk 0:01:35.9]} 20. Rf3 {[%clk 0:01:53.2]} 20... Bd7 {[%clk 0:01:17.7]} 21.
Rh3 {[%clk 0:01:39.9]} 21... Rb8 {[%clk 0:01:13.6]} 22. Qd1 {[%clk 0:01:40.5]}
22... Be8 {[%clk 0:01:08.5]} 23. Qe1 {[%clk 0:01:35.2]} 23... Qe7 {[%clk
0:01:03.6]} 24. Qh4 {[%clk 0:01:28.7]} 24... Qxh4 {[%clk 0:01:02.8]} 25. Rxh4
{[%clk 0:01:29.6]} 25... Nc4 {[%clk 0:01:03]} 26. b3 {[%clk 0:01:22.9]} 26...
Nxe3 {[%clk 0:01:02.5]} 27. Rc1 {[%clk 0:01:16.6]} 27... Rb4 {[%clk 0:01:00.8]}
28. Ne2 {[%clk 0:01:11.8]} 28... a4 {[%clk 0:00:57.7]} 29. Rc3 {[%clk
0:01:11.4]} 29... axb3 {[%clk 0:00:56.9]} 30. axb3 {[%clk 0:01:08.1]} 30... Ng4
{[%clk 0:00:36]} 31. Bf3 {[%clk 0:00:59.2]} 31... Nh6 {[%clk 0:00:34.2]} 32. Kf2
{[%clk 0:00:59.8]} 32... Ng8 {[%clk 0:00:30.7]} 33. Ke3 {[%clk 0:01:00.2]} 33...
Ne7 {[%clk 0:00:30.4]} 34. Nc1 {[%clk 0:01:00.9]} 34... g5 {[%clk 0:00:20.1]}
35. fxg5 {[%clk 0:00:58.8]} 35... f4+ {[%clk 0:00:20.4]} 36. Rxf4 {[%clk
0:00:55.1]} 36... Rxf4 {[%clk 0:00:20.2]} 37. Kxf4 {[%clk 0:00:56]} 37... Rxd4+
{[%clk 0:00:20.5]} 38. Ke3 {[%clk 0:00:56.9]} 38... Rh4 {[%clk 0:00:20.5]} 39.
Kf2 {[%clk 0:00:49.3]} 39... Rxh2+ {[%clk 0:00:19.9]} 40. Kg3 {[%clk 0:00:49.9]}
40... Rd2 {[%clk 0:00:20]} 41. Bg4 {[%clk 0:00:50]} 41... Bf7 {[%clk 0:00:14.8]}
42. Rf3 {[%clk 0:00:49.8]} 42... Kg7 {[%clk 0:00:14.4]} 43. Nd3 {[%clk
0:00:50.4]} 43... Ng6 {[%clk 0:00:14.4]} 44. Bh5 {[%clk 0:00:39]} 44... c5
{[%clk 0:00:08.9]} 45. Bxg6 {[%clk 0:00:38.3]} 45... Bxg6 {[%clk 0:00:09.2]} 46.
Nxc5 {[%clk 0:00:39.2]} 46... Bf5 {[%clk 0:00:09.8]} 47. b4 {[%clk 0:00:36.4]}
47... Rc2 {[%clk 0:00:09.3]} 48. Nb7 {[%clk 0:00:30.3]} 48... Kg6 {[%clk
0:00:08.8]} 49. Nd6 {[%clk 0:00:30.6]} 49... Kxg5 {[%clk 0:00:06.3]} 50. Nxf5
{[%clk 0:00:27.7]} 50... exf5 {[%clk 0:00:07.2]} 51. Rd3 {[%clk 0:00:28.3]}
51... Rb2 {[%clk 0:00:07.2]} 52. Rxd5 {[%clk 0:00:25.8]} 52... Rxb4 {[%clk
0:00:07.8]} 53. Rd7 {[%clk 0:00:25]} 53... Rb3+ {[%clk 0:00:08.1]} 54. Kf2
{[%clk 0:00:25.2]} 54... h5 {[%clk 0:00:08.6]} 55. e6 {[%clk 0:00:25.8]} 55...
Rb4 {[%clk 0:00:08.3]} 56. Rh7 {[%clk 0:00:19.5]} 56... Re4 {[%clk 0:00:07]} 57.
e7 {[%clk 0:00:18.4]} 57... Kg6 {[%clk 0:00:07.4]} 58. Rh8 {[%clk 0:00:19]}
58... Rxe7 {[%clk 0:00:07.6]} 59. Kf3 {[%clk 0:00:19.7]} 59... Re4 {[%clk
0:00:07.6]} 60. Rg8+ {[%clk 0:00:20]} 60... Kf6 {[%clk 0:00:07.6]} 61. Rh8
{[%clk 0:00:20.2]} 61... Kg5 {[%clk 0:00:07.6]} 62. Rg8+ {[%clk 0:00:20.7]}
62... Kh4 {[%clk 0:00:07.2]} 63. Rf8 {[%clk 0:00:21.2]} 63... Re5 {[%clk
0:00:07.3]} 64. Kf4 {[%clk 0:00:21.1]} 64... Rb5 {[%clk 0:00:06.8]} 65. Rh8
{[%clk 0:00:19.9]} 65... Ra5 {[%clk 0:00:05.5]} 66. Rh7 {[%clk 0:00:20.3]} 66...
Rd5 {[%clk 0:00:05.2]} 67. Rh8 {[%clk 0:00:20.8]} 67... Rd1 {[%clk 0:00:04.2]}
68. Kxf5 {[%clk 0:00:20.7]} 68... Rf1+ {[%clk 0:00:04.4]} 69. Ke4 {[%clk
0:00:21.3]} 69... Kg4 {[%clk 0:00:04]} 70. Rg8+ {[%clk 0:00:21.7]} 70... Kh3
{[%clk 0:00:04.3]} 71. Ke3 {[%clk 0:00:22.3]} 71... h4 {[%clk 0:00:04.8]} 72.
Ke2 {[%clk 0:00:22.7]} 72... Rf6 {[%clk 0:00:04.8]} 73. Rg7 {[%clk 0:00:22.8]}
73... Kh2 {[%clk 0:00:05]} 74. Rg8 {[%clk 0:00:23.1]} 74... h3 {[%clk
0:00:05.5]} 75. Rg7 {[%clk 0:00:23.6]} 75... Ra6 {[%clk 0:00:05.5]} 76. Kf2
{[%clk 0:00:23.5]} 76... Ra2+ {[%clk 0:00:05.4]} 77. Kf1 {[%clk 0:00:22.8]}
77... Rg2 {[%clk 0:00:05.2]} 78. Rh7 {[%clk 0:00:23.2]} 78... Rg4 {[%clk
0:00:04.7]} 79. Rf7 {[%clk 0:00:23.1]} 79... Kg3 {[%clk 0:00:04.7]} 80. Kg1
{[%clk 0:00:21.3]} 80... Kh4+ {[%clk 0:00:03.2]} 81. Kh2 {[%clk 0:00:20.9]}
81... Rg2+ {[%clk 0:00:03.2]} 82. Kh1 {[%clk 0:00:21.5]} 82... Rc2 {[%clk
0:00:03.6]} 83. Rf3 {[%clk 0:00:21.2]} 83... Kg4 {[%clk 0:00:03.3]} 84. Ra3
{[%clk 0:00:21.3]} 84... Re2 {[%clk 0:00:03.4]} 85. Ra8 {[%clk 0:00:21.3]} 85...
Kg3 {[%clk 0:00:03.2]} 86. Rg8+ {[%clk 0:00:21.5]} 86... Kf4 {[%clk 0:00:03.6]}
87. Rf8+ {[%clk 0:00:22]} 87... Kg4 {[%clk 0:00:03.7]} 88. Rg8+ {[%clk
0:00:22.5]} 88... Kh4 {[%clk 0:00:04.2]} 89. Rh8+ {[%clk 0:00:23]} 89... Kg3
{[%clk 0:00:04.7]} 90. Rg8+ {[%clk 0:00:23.9]} 90... Kf3 {[%clk 0:00:05.1]} 91.
Rf8+ {[%clk 0:00:24.3]} 91... Kg4 {[%clk 0:00:05.8]} 92. Rg8+ {[%clk 0:00:24.6]}
92... Kf4 {[%clk 0:00:06.3]} 93. Rf8+ {[%clk 0:00:24.9]} 93... Kg5 {[%clk
0:00:07]} 94. Rg8+ {[%clk 0:00:25.4]} 94... Kf5 {[%clk 0:00:07.7]} 95. Rf8+
{[%clk 0:00:25.5]} 95... Kg4 {[%clk 0:00:08.1]} 1/2-1/2